bitfinex/quotes_SOLUSD_20250917
["timestamp","ask_amount","ask_price","bid_price","bid_amount"]
[1758080915586,0.03,235.14,235.13,19.30491826]
[1758080915881,0.03,235.14,235.13,42.62716268]
[1758080917474,0.03,235.14,235.13,5.56716268]
[1758080917682,0.75,235.14,235.13,42.56716268]
[1758080918392,0.03,235.14,235.13,42.56716268]
[1758080919778,0.03,235.14,235.13,42.54716268]
[1758080919978,0.03,235.14,235.13,5.56716268]
[1758080920178,0.03,235.14,235.13,42.46716268]
[1758080920396,0.03,235.14,235.13,43.14716268]
[1758080920999,0.03,235.14,235.13,42.44716268]
[1758080921178,0.03,235.14,235.13,42.50716268]
[1758080921380,0.03,235.14,235.13,5.62716268]
[1758080921595,0.03,235.14,235.13,42.48716268]
[1758080922077,0.03,235.14,235.13,5.62716268]
[1758080922269,0.03,235.14,235.13,42.48716268]
[1758080924904,0.03,235.14,235.13,42.38716268]
[1758080925198,0.03,235.14,235.13,5.62716268]
[1758080925499,8.43237163,235.14,235.13,38.09419624]
[1758080925705,8.43237163,235.14,235.13,1.37419624]
[1758080925887,8.43237163,235.14,235.13,0.06]
[1758080926199,8.43237163,235.14,235.13,36.74]
[1758080927202,8.43237163,235.14,235.13,0.06]
[1758080927413,8.43237163,235.14,235.13,36.74]
[1758080929994,12.6851572,235.14,235.13,36.74]
[1758080931090,8.43237163,235.14,235.13,36.74]
[1758080931399,12.6851572,235.14,235.13,0.06]
[1758080938403,8.43237163,235.14,235.13,0.06]
[1758080938590,12.6851572,235.14,235.13,0.06]
[1758080942025,7.71237163,235.14,235.13,0.06]
[1758080942727,7.71237163,235.14,235.13,2.07419624]
[1758080944128,7.71237163,235.14,235.13,1.37419624]
[1758080945617,7.71237163,235.14,235.13,37.45419624]
[1758080946219,7.71237163,235.14,235.13,0.06]
[1758080946423,12.6751572,235.14,235.13,0.06]
[1758080948423,33.68237163,235.11,235.1,0.06]
[1758080948612,33.96669477,235.11,235.1,0.06]
[1758080948933,34.67669477,235.11,235.1,0.06]
[1758080949618,38.93002299,235.11,235.1,0.06]
[1758080953628,74.89002299,235.11,235.1,0.06]
[1758080953811,7.96669477,235.09,235.08,0.06]
[1758080954226,8.67669477,235.09,235.08,0.06]
[1758080954540,44.57669477,235.09,235.08,0.06]
[1758080955322,48.83038484,235.09,235.08,0.06]
[1758080957940,33.96669477,235.06,235.03,0.06]
[1758080958323,34.67669477,235.06,235.03,0.06]
[1758080958519,33.96669477,235.06,235.03,0.06]
[1758080958741,34.67669477,235.06,235.03,0.06]
[1758080960147,38.93092773,235.06,235.03,0.06]
[1758080960545,38.93092773,235.06,235.02,0.06]
[1758080960546,7.96669477,235.03,235.02,1e-08]
[1758080960842,43.72669477,235.03,235.02,1e-08]
[1758080961032,44.43669477,235.03,235.02,1e-08]
[1758080961233,44.41669477,235.03,235.02,1e-08]
[1758080961745,48.67147075,235.03,235.02,1e-08]
[1758080962530,12.22147075,235.03,235.02,1e-08]
[1758080962736,37.93714761,235.03,235.02,1e-08]
[1758080962946,37.93714761,235.03,235.02,0.70000001]
[1758080963740,11.93714761,235.03,235.02,0.70000001]
[1758080964466,7.68237163,235.03,235.02,0.70000001]
[1758080965657,7.68237163,235.03,235.02,2.75540749]
[1758080971740,7.68237163,235.03,235.02,0.70000001]
[1758080972062,7.68237163,235.03,235.02,2.75540749]
[1758080976047,7.68237163,235.04,235.03,4.25477598]
[1758080976374,7.68237163,235.04,235.03,7.01018346]
[1758080978079,7.68237163,235.06,235.03,7.01018346]
[1758080978241,7.68237163,235.06,235.05,2.05540748]
[1758080978446,7.68237163,235.06,235.05,2.75540748]
[1758080979370,7.68237163,235.06,235.05,7.00982143]
[1758080980264,7.68237163,235.06,235.05,4.95441395]
[1758080980460,7.68237163,235.06,235.05,7.00982143]
[1758080982775,7.68237163,235.06,235.05,4.95441395]
[1758080982970,7.68237163,235.06,235.05,7.00982143]
[1758080985765,7.68237163,235.06,235.05,7.00982143]
[1758080986977,7.68237163,235.06,235.05,6.30982143]
[1758080991376,7.71237163,235.06,235.05,6.30982143]
[1758080993169,7.71237163,235.06,235.05,41.68982143]
[1758080993584,8.42237163,235.06,235.05,2.05540748]
[1758080993765,8.42237163,235.06,235.05,35.38]
[1758080996884,8.42237163,235.06,235.05,37.43540748]
[1758080997072,7.71237163,235.06,235.05,41.68982143]
[1758080997280,7.71237163,235.06,235.05,42.34982143]
[1758080997478,7.71237163,235.06,235.05,37.43540748]
[1758080997978,7.68237163,235.04,235.02,1e-08]
[1758080998283,7.68237163,235.04,235.03,35.38]
[1758080998487,8.36237163,235.04,235.03,35.38]
[1758081000378,12.61697681,235.04,235.02,1e-08]
[1758081007589,12.59297681,235.04,235.02,1e-08]
[1758081009182,12.62297681,235.04,235.02,1e-08]
[1758081015197,4.53909912,235.03,235.02,1e-08]
[1758081015394,39.87909912,235.03,235.02,1e-08]
[1758081015596,40.55909912,235.03,235.02,1e-08]
[1758081016219,40.70126069,235.03,235.02,1e-08]
[1758081016789,8.08485634,235.02,235.01,1e-08]
[1758081016984,33.94269477,234.98,234.97,0.06]
[1758081017213,69.28269477,234.98,234.97,0.06]
[1758081017409,74.2183761,234.98,234.97,0.06]
[1758081020705,38.8783761,234.98,234.97,0.06]
[1758081020907,74.2183761,234.98,234.97,0.06]
[1758081021295,73.5383761,234.98,234.97,0.06]
[1758081021722,74.2183761,234.98,234.97,0.06]
[1758081028198,74.2183761,234.98,234.81,0.2]
[1758081028199,7.65837163,234.95,234.81,0.2]
[1758081028399,7.94269477,234.82,234.81,0.2]
[1758081028604,7.65837163,234.74,234.73,0.1]
[1758081029426,7.65837163,234.74,234.73,0.8]
[1758081031714,7.65837163,234.74,234.73,0.1]
[1758081032124,7.65837163,234.74,234.73,0.8]
[1758081035229,7.65837163,234.74,234.73,0.1]
[1758081035528,7.65837163,234.74,234.73,0.8]
[1758081039438,7.65837163,234.74,234.73,2.11602591]
[1758081041520,7.65837163,234.74,234.73,0.8]
[1758081041850,7.65837163,234.74,234.73,2.11602591]
[1758081043826,7.65837163,234.74,234.73,0.8]
[1758081044031,7.65837163,234.74,234.73,2.11602591]
[1758081044231,7.65837163,234.74,234.73,0.8]
[1758081044437,7.65837163,234.74,234.73,2.11602591]
[1758081046158,7.65837163,234.74,234.73,0.1]
[1758081046652,7.65837163,234.74,234.73,2.11602591]
[1758081049546,7.65837163,234.74,234.73,0.1]
[1758081049748,7.65837163,234.74,234.73,0.8]
[1758081050424,7.65837163,234.74,234.73,0.1]
[1758081053352,7.65837163,234.74,234.73,2.11602591]
[1758081053750,7.65837163,234.74,234.73,1.41602591]
[1758081053928,7.65837163,234.74,234.73,2.11602591]
[1758081054342,7.65837163,234.74,234.73,0.1]
[1758081054530,7.65837163,234.74,234.73,1.41602591]
[1758081054731,7.65837163,234.74,234.73,2.11602591]
[1758081055561,7.65837163,234.74,234.73,0.8]
[1758081055937,7.65837163,234.74,234.73,5.06021386]
[1758081056248,7.65837163,234.74,234.73,6.37623977]
[1758081059043,7.65837163,234.74,234.73,0.82]
[1758081059446,7.65837163,234.74,234.73,2.13602591]
[1758081060256,7.65837163,234.74,234.73,0.82]
[1758081060574,7.65837163,234.74,234.73,2.13602591]
[1758081060777,7.65837163,234.74,234.73,6.39623977]
[1758081062567,7.65837163,234.74,234.73,0.1]
[1758081065265,7.65837163,234.74,234.73,4.36021386]
[1758081065645,7.65837163,234.76,234.73,6.39623977]
[1758081065973,7.65837163,234.74,234.73,6.39623977]
[1758081066270,7.65837163,234.74,234.73,4.36021386]
[1758081067180,8.31837163,234.74,234.73,0.1]
[1758081067478,12.578404,234.74,234.73,0.1]
[1758081067667,7.65837163,234.72,234.71,0.2]
[1758081067854,7.94269477,234.72,234.71,0.2]
[1758081068058,43.82269477,234.72,234.71,0.2]
[1758081069174,48.08309013,234.72,234.71,0.2]
[1758081069768,7.65837163,234.72,234.71,0.2]
[1758081070291,8.31837163,234.72,234.71,0.2]
[1758081070574,12.57876699,234.72,234.71,0.2]
[1758081072279,8.31837163,234.72,234.71,0.2]
[1758081073580,12.57876699,234.72,234.71,0.2]
[1758081075553,7.65837163,234.72,234.71,0.2]
[1758081076087,12.57876699,234.72,234.71,0.2]
[1758081076272,7.65837163,234.72,234.71,0.2]
[1758081076476,7.65837163,234.72,234.71,0.92]
[1758081076785,7.65837163,234.72,234.71,2.98138508]
[1758081078561,7.65837163,234.72,234.71,7.24196196]
[1758081081371,7.65837163,234.74,234.72,13.59559401]
[1758081081576,7.65837163,234.74,234.73,2.78138508]
[1758081082178,7.65837163,234.74,234.73,16.37697909]
[1758081082496,7.68837163,234.76,234.73,2.78138508]
[1758081082805,7.68837163,234.76,234.75,2.06138508]
[1758081082986,7.68837163,234.76,234.75,16.37697909]
[1758081083493,7.68837163,234.76,234.75,20.63682999]
[1758081085176,7.68837163,234.76,234.71,10.9114422]
[1758081085378,7.65837163,234.72,234.71,0.26]
[1758081085783,8.31837163,234.72,234.71,0.26]
[1758081093585,7.65837163,234.72,234.71,0.26]
[1758081099519,11.91876699,234.72,234.71,0.26]
[1758081099697,12.57876699,234.72,234.71,0.26]
[1758081100419,11.91876699,234.72,234.71,0.26]
[1758081101517,12.57876699,234.72,234.71,0.26]
[1758081108422,47.92309013,234.72,234.71,0.26]
[1758081108917,12.86309013,234.72,234.71,0.26]
[1758081109418,47.92309013,234.72,234.71,0.26]
[1758081109595,12.20309013,234.72,234.71,0.26]
[1758081110008,12.86309013,234.72,234.71,0.26]
[1758081110215,12.20309013,234.72,234.71,0.26]
[1758081111519,7.65837163,234.72,234.71,0.91]
[1758081113013,7.65837163,234.72,234.71,5.17057688]
[1758081113610,7.65837163,234.72,234.71,0.91]
[1758081113808,7.65837163,234.72,234.71,5.17057688]
[1758081114610,7.65837163,234.72,234.71,0.91]
[1758081116630,7.65837163,234.72,234.71,5.17057688]
[1758081119929,7.65837163,234.72,234.71,0.91]
[1758081120906,7.65837163,234.72,234.71,0.26]
[1758081121406,8.35837163,234.72,234.71,0.26]
[1758081122014,7.65837163,234.72,234.71,0.26]
[1758081122220,7.65837163,234.72,234.71,0.95]
[1758081122607,7.65837163,234.72,234.71,0.26]
[1758081124113,11.91876699,234.72,234.71,0.26]
[1758081124533,12.61876699,234.72,234.71,0.26]
[1758081124720,11.91876699,234.72,234.71,0.26]
[1758081125215,12.61876699,234.72,234.71,0.26]
[1758081126229,8.35837163,234.72,234.71,0.26]
[1758081126535,7.65837163,234.72,234.71,0.26]
[1758081127520,11.91876699,234.72,234.71,0.26]
[1758081127835,12.61876699,234.72,234.71,0.26]
[1758081130538,12.90309013,234.72,234.71,0.26]
[1758081132117,16.43585544,234.72,234.71,0.26]
[1758081132524,12.90309013,234.72,234.71,0.26]
[1758081133344,16.43585544,234.72,234.71,0.26]
[1758081135930,7.65837163,234.63,234.62,0.57]
[1758081137429,7.65837163,234.63,234.61,0.2]
[1758081137837,7.65837163,234.63,234.61,0.89]
[1758081138229,11.92041144,234.63,234.61,0.2]
[1758081138944,0.28432314,234.62,234.61,0.2]
[1758081140952,0.98432314,234.62,234.61,0.2]
[1758081143764,1.12648471,234.62,234.61,0.2]
[1758081144437,36.02648471,234.62,234.61,0.2]
[1758081145444,1.12648471,234.62,234.61,0.2]
[1758081145760,36.02648471,234.62,234.61,0.2]
[1758081146357,7.65837163,234.52,234.51,0.3]
[1758081146955,7.65837163,234.52,234.51,1.02]
[1758081151547,8.32837163,234.52,234.51,0.3]
[1758081151744,8.61269477,234.52,234.51,0.3]
[1758081152143,43.49269477,234.52,234.51,0.3]
[1758081152766,7.65837163,234.52,234.51,1.02]
[1758081153061,7.65837163,234.52,234.51,0.3]
[1758081153237,8.32837163,234.52,234.51,0.3]
[1758081154065,7.65837163,234.52,234.51,0.3]
[1758081154265,7.65837163,234.52,234.51,1.02]
[1758081154463,7.65837163,234.52,234.51,0.3]
[1758081154652,7.65837163,234.52,234.51,1.02]
[1758081154965,7.65837163,234.52,234.51,0.3]
[1758081156976,7.65837163,234.52,234.51,1.02]
[1758081157567,7.65837163,234.52,234.51,1.08]
[1758081160651,7.65837163,234.52,234.51,0.36]
[1758081162174,43.45269477,234.52,234.51,0.36]
[1758081163371,8.61269477,234.52,234.51,0.36]
[1758081163555,43.45269477,234.52,234.51,0.36]
[1758081166582,8.61269477,234.52,234.51,0.36]
[1758081166760,43.43269477,234.52,234.51,0.36]
[1758081167264,8.61269477,234.52,234.51,0.36]
[1758081167478,47.69672342,234.52,234.51,0.36]
[1758081170975,47.67672342,234.52,234.51,0.36]
[1758081171274,11.92240028,234.52,234.51,0.36]
[1758081171476,46.72240028,234.52,234.51,0.36]
[1758081172463,46.72240028,234.52,234.51,1.08]
[1758081172864,46.72240028,234.52,234.51,0.36]
[1758081173691,7.65837163,234.52,234.51,1.08]
[1758081173894,42.45837163,234.52,234.51,1.08]
[1758081174594,7.65837163,234.52,234.51,1.08]
[1758081176969,7.65837163,234.52,234.51,14.67559401]
[1758081179865,7.65837163,234.52,234.51,1.08]
[1758081180382,7.65837163,234.52,234.51,0.36]
[1758081181194,43.41269477,234.52,234.51,0.36]
[1758081184182,8.65269477,234.52,234.51,0.36]
[1758081184382,43.41269477,234.52,234.51,0.36]
[1758081184896,7.94269477,234.52,234.51,0.36]
[1758081185094,42.68269477,234.52,234.51,0.36]
[1758081186592,42.39837163,234.52,234.51,0.36]
[1758081189109,7.65837163,234.52,234.51,1.04]
[1758081189286,42.37837163,234.52,234.51,0.36]
[1758081190103,42.37837163,234.52,234.51,1.04]
[1758081190307,42.37837163,234.52,234.51,0.36]
[1758081192579,175.07269477,234.52,234.51,0.36]
[1758081193193,174.07837163,234.52,234.51,0.36]
[1758081193792,139.35837163,234.52,234.51,0.36]
[1758081193993,174.05837163,234.52,234.51,0.36]
[1758081194508,178.32240028,234.52,234.51,0.36]
[1758081195201,179.31672342,234.52,234.51,0.36]
[1758081195424,144.61672342,234.52,234.51,0.36]
[1758081195577,182.84948873,234.52,234.51,1e-08]
[1758081195782,0.28432314,234.51,234.48,0.06]
[1758081196074,7.65837163,234.49,234.48,0.06]
[1758081196278,8.36837163,234.49,234.48,0.06]
[1758081196713,33.65837163,234.47,234.46,0.06]
[1758081196901,68.64269477,234.47,234.46,0.06]
[1758081197108,73.61763271,234.47,234.46,0.06]
[1758081198100,7.65837163,234.45,234.44,248.10606061]
[1758081198303,43.35269477,234.45,234.44,248.10606061]
[1758081199016,42.64269477,234.45,234.44,248.10606061]
[1758081199184,46.6036734,234.45,234.44,248.10606061]
[1758081199382,7.65837163,234.45,234.44,248.10606061]
[1758081199601,7.65837163,234.45,234.44,248.78606061]
[1758081204801,7.65837163,234.45,234.44,248.10606061]
[1758081205005,7.65837163,234.45,234.44,248.78606061]
[1758081207700,7.65837163,234.45,234.44,250.85132363]
[1758081208490,7.65837163,234.45,234.44,285.51132363]
[1758081209312,7.65837163,234.45,234.44,250.85132363]
[1758081209498,7.65837163,234.45,234.44,285.51132363]
[1758081209691,7.65837163,234.45,234.44,250.85132363]
[1758081209891,7.65837163,234.45,234.44,285.49132363]
[1758081212615,7.65837163,234.45,234.44,285.55132363]
[1758081213315,7.65837163,234.45,234.44,283.48606061]
[1758081213798,0.03,234.47,234.46,39.59559401]
[1758081214110,0.03,234.47,234.46,76.4430186]
[1758081214318,0.03,234.5,234.47,13.73775558]
[1758081214506,0.03,234.5,234.49,2.06526302]
[1758081214891,0.03,234.5,234.49,2.76526302]
[1758081215092,0.03,234.5,234.49,16.5030186]
[1758081215309,0.03,234.5,234.49,20.76536437]
[1758081215915,0.03,234.5,234.49,25.02993855]
[1758081216519,0.03,234.5,234.49,59.79210012]
[1758081217510,0.03,234.5,234.49,59.93426169]
[1758081217724,0.03,234.5,234.49,57.42251396]
[1758081218018,0.03,234.5,234.49,55.22543121]
[1758081223121,0.03,234.5,234.49,55.36759278]
[1758081224309,0.03,234.5,234.49,68.17524322]
[1758081224529,0.03,234.5,234.49,70.24050624]
[1758081225110,0.03,234.5,234.49,70.52482938]
[1758081225313,0.65,234.6,234.49,81.18626483]
[1758081225518,0.03,234.61,234.59,2.06526302]
[1758081225724,0.03,234.61,234.6,36.64526302]
[1758081226424,0.03,234.61,234.6,34.58]
[1758081226740,0.03,234.61,234.6,36.64526302]
[1758081230017,0.03,234.61,234.6,48.87559401]
[1758081230212,0.03,234.61,234.6,50.90085703]
[1758081231031,0.03,234.61,234.6,51.0430186]
[1758081231531,0.03,234.61,234.6,48.97775558]
[1758081231761,0.03,234.61,234.6,51.0430186]
[1758081233025,0.03,234.61,234.6,16.5030186]
[1758081233233,0.03,234.61,234.6,51.32734174]
[1758081234838,0.03,234.61,234.6,16.78734174]
[1758081235131,0.03,234.61,234.6,51.30734174]
[1758081235920,0.03,234.61,234.6,53.01400841]
[1758081236114,0.03,234.61,234.6,16.42874539]
[1758081236322,0.03,234.61,234.6,53.01400841]
[1758081238229,0.03,234.66,234.61,28.94045388]
[1758081238524,0.03,234.66,234.63,17.72612005]
[1758081238732,0.03,234.66,234.63,15.66085703]
[1758081238914,0.03,234.66,234.63,16.37085703]
[1758081239115,0.03,234.66,234.63,16.79734174]
[1758081239519,0.03,234.66,234.63,20.56919861]
[1758081240120,0.03,234.66,234.63,24.83122818]
[1758081241935,0.03,234.66,234.63,59.31122818]
[1758081242137,0.03,234.66,234.65,44.15260476]
[1758081242345,0.2,234.69,234.66,14.02207872]
[1758081242634,0.2,234.69,234.68,41.8030186]
[1758081242839,0.2,234.69,234.68,76.2830186]
[1758081243036,0.2,234.69,234.68,77.27734174]
[1758081243847,0.2,234.69,234.68,83.24462035]
[1758081244043,0.2,234.69,234.68,48.76462035]
[1758081244233,0.2,234.69,234.68,83.24462035]
[1758081244434,0.9,234.69,234.68,15.3017511]
[1758081244643,0.9,234.69,234.68,15.66085703]
[1758081244942,0.9,234.69,234.68,48.05559401]
[1758081245920,0.9,234.69,234.68,13.59559401]
[1758081246116,0.9,234.69,234.66,4.26137056]
[1758081246117,0.9,234.69,234.66,13.59559401]
[1758081246320,0.7,234.68,234.67,34.46]
[1758081249248,0.7,234.68,234.66,2.06526302]
[1758081249440,0.2,234.69,234.67,34.46]
[1758081250025,0.7,234.68,234.67,34.46]
[1758081250241,0.7,234.68,234.66,2.06526302]
[1758081250434,0.2,234.69,234.67,34.44]
[1758081250834,0.2,234.69,234.67,36.50526302]
[1758081251030,0.2,234.69,234.68,15.66085703]
[1758081251253,0.2,234.69,234.68,20.63197855]
[1758081251560,0.23,234.69,234.68,17.36730528]
[1758081251842,0.23,234.69,234.68,15.66085703]
[1758081252241,0.23,234.69,234.68,16.37085703]
[1758081253132,0.23,234.69,234.68,15.66085703]
[1758081253528,0.23,234.69,234.68,16.37085703]
[1758081253734,0.23,234.69,234.68,15.62409055]
[1758081254750,0.23,234.69,234.68,16.62053879]
[1758081254953,0.23,234.69,234.68,17.33053879]
[1758081255252,0.23,234.69,234.68,16.62053879]
[1758081256347,0.93,234.69,234.68,14.91409055]
[1758081256772,0.93,234.69,234.68,35.73849654]
[1758081257139,0.93,234.69,234.68,34.42]
[1758081257749,5.19103853,234.69,234.68,34.42]
[1758081257946,5.19103853,234.69,234.66,34.48]
[1758081258142,0.7,234.68,234.66,34.48]
[1758081258453,0.7,234.67,234.66,34.48]
[1758081262865,0.23,234.69,234.66,36.50849654]
[1758081263050,0.23,234.69,234.68,1.31849654]
[1758081263359,0.23,234.69,234.68,35.71849654]
[1758081263660,0.23,234.69,234.68,36.42849654]
[1758081264065,0.23,234.69,234.68,50.02409055]
[1758081264443,0.23,234.69,234.68,50.16625212]
[1758081264641,0.23,234.69,234.68,16.620466]
[1758081264960,0.23,234.69,234.68,53.55521207]
[1758081265146,0.23,234.69,234.68,54.22521207]
[1758081265554,0.23,234.69,234.68,53.55521207]
[1758081266181,0.23,234.69,234.68,54.22521207]
[1758081267458,0.23,234.69,234.68,55.93166031]
[1758081267762,0.23,234.69,234.68,53.55521207]
[1758081267951,0.23,234.69,234.68,14.91409055]
[1758081268152,0.93,234.69,234.68,35.69849654]
[1758081268460,0.23,234.69,234.68,35.69849654]
[1758081269137,0.23,234.69,234.68,1.31849654]
[1758081269338,0.23,234.69,234.68,35.67849654]
[1758081270242,0.23,234.69,234.68,18.52671553]
[1758081270443,0.23,234.69,234.68,49.27409055]
[1758081271163,0.23,234.69,234.68,49.94409055]
[1758081272251,0.23,234.69,234.68,14.91409055]
[1758081272442,0.23,234.69,234.68,49.27409055]
[1758081273865,0.23,234.69,234.68,49.94409055]
[1758081275544,0.23,234.69,234.68,50.08625212]
[1758081276662,0.93,234.69,234.68,1.70637544]
[1758081276959,0.93,234.69,234.68,34.34]
[1758081278949,0.23,234.69,234.68,34.34]
[1758081279153,0.93,234.69,234.68,34.34]
[1758081280074,0.23,234.69,234.68,34.34]
[1758081280271,0.23,234.69,234.68,35.65849654]
[1758081280570,0.23,234.69,234.68,39.91961806]
[1758081283970,0.23,234.69,234.68,1.31849654]
[1758081284181,0.93,234.69,234.68,34.32]
[1758081285471,5.1910226,234.69,234.66,0.06]
[1758081285673,5.1910226,234.69,234.67,34.3]
[1758081285866,0.7,234.68,234.67,34.3]
[1758081287483,0.7,234.68,234.66,0.06]
[1758081287668,0.7,234.67,234.66,34.36]
[1758081289281,0.23,234.69,234.66,36.34849654]
[1758081289479,0.23,234.69,234.68,1.31849654]
[1758081289687,0.23,234.69,234.68,35.61849654]
[1758081291181,0.93,234.69,234.68,34.3]
[1758081291366,0.93,234.69,234.66,0.06]
[1758081291569,0.93,234.69,234.66,34.36]
[1758081291769,0.7,234.68,234.66,34.36]
[1758081292588,0.7,234.67,234.66,34.36]
[1758081292887,5.19093996,234.69,234.66,34.36]
[1758081293179,0.7,234.68,234.66,34.36]
[1758081293378,0.23,234.69,234.66,34.36]
[1758081293586,0.93,234.69,234.67,1.31849654]
[1758081293778,0.23,234.69,234.67,1.31849654]
[1758081294086,0.23,234.69,234.68,36.26849654]
[1758081294386,0.23,234.69,234.68,35.59849654]
[1758081296386,0.23,234.69,234.68,39.85961806]
[1758081296878,0.23,234.69,234.68,40.54961806]
[1758081297262,0.23,234.69,234.68,39.85961806]
[1758081297678,0.23,234.69,234.68,40.54961806]
[1758081299785,0.23,234.69,234.68,34.28]
[1758081300164,0.23,234.69,234.68,40.54961806]
[1758081300360,0.23,234.69,234.68,54.14521207]
[1758081300585,0.23,234.69,234.68,54.28737364]
[1758081300769,0.23,234.69,234.68,55.99374909]
[1758081303068,0.23,234.69,234.68,55.95374909]
[1758081303264,0.23,234.69,234.68,3.02487199]
[1758081303489,0.23,234.69,234.68,35.55849654]
[1758081305693,0.23,234.69,234.68,34.24]
[1758081305896,0.23,234.69,234.68,39.81961806]
[1758081306082,0.23,234.69,234.68,38.50112152]
[1758081306275,0.23,234.69,234.68,39.81961806]
[1758081307999,0.23,234.69,234.66,0.06]
[1758081308183,0.28432314,234.68,234.66,0.06]
[1758081308495,0.66,234.67,234.66,0.06]
[1758081309190,26.94432314,234.67,234.66,0.06]
[1758081310178,31.20562624,234.67,234.66,0.06]
[1758081312775,32.91316717,234.67,234.66,0.06]
[1758081312987,31.20562624,234.67,234.66,0.06]
[1758081317913,131.7,234.68,234.66,0.06]
[1758081318135,131.7,234.68,234.66,0.75]
[1758081318910,0.66,234.67,234.66,0.06]
[1758081319433,131.7,234.68,234.66,0.06]
[1758081319786,132.36,234.68,234.66,0.06]
[1758081320205,131.7,234.68,234.66,0.06]
[1758081320595,135.96113037,234.68,234.66,0.06]
[1758081320797,0.66,234.67,234.66,0.06]
[1758081321310,135.96113037,234.68,234.66,0.06]
[1758081322094,131.7,234.68,234.66,0.75]
[1758081323417,131.7,234.68,234.66,0.06]
[1758081325011,131.7,234.68,234.66,0.75]
[1758081325316,131.73,234.68,234.67,0.69]
[1758081325518,131.73,234.68,234.67,2.75257595]
[1758081325519,0.03,234.68,234.67,2.75257595]
[1758081326793,0.03,234.68,234.67,14.28559401]
[1758081326992,0.03,234.68,234.67,20.60947306]
[1758081328098,0.03,234.68,234.67,18.54689711]
[1758081328297,0.03,234.68,234.67,20.60947306]
[1758081328829,0.03,234.68,234.67,4.2613031]
[1758081329121,0.03,234.68,234.67,7.01387905]
[1758081331328,0.03,234.68,234.66,0.06]
[1758081331492,0.03,234.68,234.67,2.75257595]
[1758081331694,0.03,234.68,234.67,7.01387905]
[1758081332713,0.03,234.68,234.67,4.9513031]
[1758081336123,0.03,234.68,234.66,0.06]
[1758081336528,0.03,234.68,234.66,5.01147799]
[1758081336920,0.7,234.68,234.66,0.06]
[1758081337305,0.03,234.68,234.66,0.06]
[1758081338915,0.03,234.68,234.66,4.32147695]
[1758081341130,0.03,234.68,234.66,5.01147695]
[1758081341431,0.03,234.68,234.66,39.13147695]
[1758081341812,0.03,234.68,234.66,34.87]
[1758081343330,0.03,234.68,234.66,39.1314716]
[1758081344535,0.03,234.68,234.66,40.50404755]
[1758081344716,0.03,234.68,234.67,0.69]
[1758081345037,0.03,234.68,234.66,40.50404755]
[1758081345212,0.03,234.68,234.66,41.19404755]
[1758081345413,0.03,234.68,234.66,39.1314716]
[1758081345612,0.03,234.68,234.66,41.19404755]
[1758081346026,0.03,234.68,234.66,39.1314716]
[1758081347533,0.03,234.68,234.66,34.18]
[1758081347713,0.7,234.68,234.66,34.18]
[1758081347915,0.03,234.68,234.66,34.18]
[1758081349523,0.03,234.68,234.66,38.44145341]
[1758081349833,0.03,234.68,234.66,39.13145341]
[1758081351246,0.03,234.68,234.66,34.18]
[1758081351543,0.03,234.68,234.67,34.1]
[1758081354132,0.03,234.68,234.67,34.79]
[1758081354337,0.03,234.68,234.67,39.0513031]
[1758081355020,0.03,234.68,234.67,38.3613031]
[1758081357532,0.03,234.68,234.67,34.1]
[1758081360639,0.03,234.68,234.67,38.3613031]
[1758081360838,0.03,234.68,234.67,34.1]
[1758081363121,0.03,234.68,234.66,0.74]
[1758081363326,0.03,234.68,234.67,34.06]
[1758081364426,0.03,234.68,234.66,0.74]